bitfinex/quotes_BTCUSD_20240731
["timestamp","ask_amount","ask_price","bid_price","bid_amount"]
[1722390671323,0.00028,66402.0,66401.0,0.4518]
[1722390671506,0.06891102,66405.0,66402.0,0.150597]
[1722390671507,0.00028,66404.0,66402.0,0.150597]
[1722390671727,0.00028,66403.0,66402.0,0.451792]
[1722390671973,0.00028,66403.0,66402.0,0.150597]
[1722390672408,0.00028,66404.0,66403.0,0.150595]
[1722390672869,0.01537889,66404.0,66402.0,0.150597]
[1722390673141,0.01537889,66404.0,66403.0,0.008983]
[1722390673554,0.08273642,66404.0,66403.0,0.008983]
[1722390673940,0.96850142,66404.0,66403.0,0.008983]
[1722390674146,1.23429321,66404.0,66403.0,0.008983]
[1722390674340,1.23429321,66404.0,66382.0,0.0609]
[1722390674341,1.45099321,66404.0,66382.0,0.0609]
[1722390674603,0.00028,66386.0,66382.0,0.0609]
[1722390674827,0.301245,66391.0,66382.0,0.0609]
[1722390675036,0.1345,66393.0,66382.0,0.0609]
[1722390675037,0.00028,66385.0,66382.0,0.0609]
[1722390675250,0.150629,66388.0,66382.0,0.0609]
[1722390675452,0.01503501,66384.0,66382.0,0.0609]
[1722390675656,0.00028,66386.0,66382.0,0.211542]
[1722390675866,0.01504562,66384.0,66383.0,0.014913]
[1722390676071,0.00028,66386.0,66383.0,0.000913]
[1722390676276,0.00028,66386.0,66383.0,0.009913]
[1722390676482,0.01504862,66385.0,66383.0,0.023913]
[1722390676700,0.01504862,66385.0,66383.0,0.174553]
[1722390676906,0.00028,66389.0,66384.0,0.150637]
[1722390677745,0.00028,66389.0,66383.0,0.014913]
[1722390677948,0.00028,66389.0,66385.0,0.150636]
[1722390678084,0.00028,66389.0,66383.0,0.316192]
[1722390678085,0.00028,66389.0,66384.0,0.301275]
[1722390678287,0.00028,66389.0,66386.0,0.150633]
[1722390678715,0.00128,66389.0,66386.0,0.150633]
[1722390679122,0.00128,66389.0,66386.0,0.150632]
[1722390679329,0.00128,66389.0,66385.0,0.30127]
[1722390679330,0.001,66389.0,66388.0,0.150629]
[1722390679530,0.08996817,66392.0,66384.0,0.014913]
[1722390679531,0.06747613,66392.0,66390.0,0.150625]
[1722390679734,0.06775613,66393.0,66389.0,0.150626]
[1722390679947,0.06775613,66393.0,66387.0,0.30126]
[1722390680357,0.06775613,66393.0,66390.0,0.150624]
[1722390680570,0.06747613,66392.0,66390.0,0.150624]
[1722390680777,0.00028,66393.0,66390.0,0.150624]
[1722390680996,0.06780191,66393.0,66387.0,0.014]
[1722390681227,0.06780191,66393.0,66392.0,0.451861]
[1722390681228,0.06752191,66393.0,66392.0,0.451861]
[1722390681631,0.11281653,66397.0,66393.0,0.150616]
[1722390681632,0.00028,66397.0,66393.0,0.150616]
[1722390681836,0.00028,66397.0,66389.0,0.363652]
[1722390681837,0.00028,66393.0,66390.0,0.301249]
[1722390682060,0.06752866,66392.0,66389.0,0.301254]
[1722390682265,0.06780866,66392.0,66391.0,0.150622]
[1722390682471,0.0675305,66392.0,66391.0,0.451867]
[1722390683668,0.0675305,66392.0,66391.0,0.164622]
[1722390683878,0.0675305,66392.0,66391.0,0.465867]
[1722390684098,0.09132067,66393.0,66392.0,0.15062]
[1722390684305,0.09032067,66393.0,66392.0,0.15062]
[1722390684726,0.0903188,66393.0,66392.0,0.451861]
[1722390685195,0.09031954,66393.0,66392.0,0.451861]
[1722390685824,0.09131954,66393.0,66392.0,0.478861]
[1722390686028,0.09131954,66393.0,66392.0,0.027]
[1722390686233,0.00128,66393.0,66392.0,0.027]
[1722390686438,0.11385734,66393.0,66392.0,0.027]
[1722390687440,0.09007673,66393.0,66392.0,0.027]
[1722390688397,0.03234428,66393.0,66392.0,0.027]
[1722390688830,0.03233474,66393.0,66392.0,0.027]
[1722390689633,0.03233474,66394.0,66392.0,0.027]
[1722390690280,0.150618,66393.0,66392.0,0.027]
[1722390690481,0.18295274,66393.0,66392.0,0.014]
[1722390690681,0.18295274,66393.0,66385.0,0.213035]
[1722390690907,0.06756083,66387.0,66385.0,0.213035]
[1722390691318,0.06756083,66387.0,66385.0,0.0624]
[1722390691539,0.09008111,66389.0,66386.0,0.150634]
[1722390691540,0.09008302,66389.0,66386.0,0.150634]
[1722390691862,0.06756227,66387.0,66386.0,0.150634]
[1722390693861,0.06756227,66387.0,66386.0,0.479902]
[1722390694061,0.06756227,66387.0,66386.0,0.465902]
[1722390694236,0.06756227,66387.0,66386.0,0.479902]
[1722390694441,0.06756227,66388.0,66387.0,0.150631]
[1722390694821,0.01498752,66388.0,66387.0,0.150631]
[1722390695226,0.09007118,66389.0,66387.0,0.150631]
[1722390695623,0.01498752,66388.0,66387.0,0.150631]
[1722390695830,0.09007118,66389.0,66387.0,0.150631]
[1722390696253,0.01498752,66388.0,66387.0,0.164631]
[1722390696512,0.09007118,66389.0,66387.0,0.164631]
[1722390696715,0.09007118,66389.0,66387.0,0.150631]
[1722390696914,0.01498752,66388.0,66387.0,0.178631]
[1722390697395,0.09007118,66388.0,66387.0,0.178631]
[1722390698319,0.06756875,66388.0,66387.0,0.028]
[1722390698746,0.08255927,66388.0,66387.0,0.17863]
[1722390699359,0.08255927,66388.0,66387.0,0.479893]
[1722390699670,0.08255927,66388.0,66387.0,0.465893]
[1722390699868,0.08255927,66388.0,66387.0,0.479893]
[1722390700688,0.08255927,66388.0,66387.0,0.781156]
[1722390701602,0.08257484,66388.0,66387.0,0.781156]
[1722390701806,0.08257484,66388.0,66387.0,0.479893]
[1722390702006,0.08257484,66388.0,66387.0,0.028]
[1722390702221,0.01498752,66388.0,66387.0,0.178631]
[1722390702632,0.10510395,66388.0,66387.0,0.028]
[1722390703066,0.79976124,66388.0,66387.0,0.028]
[1722390703280,0.93436124,66388.0,66387.0,0.028]
[1722390703519,0.33184324,66388.0,66387.0,0.028]
[1722390703726,0.63310224,66388.0,66387.0,0.028]
[1722390703987,0.33184324,66388.0,66387.0,0.014]
[1722390704206,0.26522594,66388.0,66384.0,0.000913]
[1722390704414,0.03162672,66387.0,66384.0,0.000913]
[1722390704635,0.10148752,66388.0,66384.0,0.000913]
[1722390704850,0.01497641,66386.0,66384.0,0.000913]
[1722390705062,0.0845,66388.0,66384.0,0.000913]
[1722390705063,0.03193652,66385.0,66384.0,0.000913]
[1722390705285,0.12755939,66385.0,66384.0,0.452828]
[1722390705486,0.12755939,66385.0,66384.0,0.777105]
[1722390705702,0.08252491,66385.0,66384.0,0.475828]
[1722390706125,0.01497342,66385.0,66384.0,0.000913]
[1722390706329,0.09006522,66386.0,66384.0,0.000913]
[1722390706534,0.01494996,66385.0,66384.0,0.000913]
[1722390706736,0.01494996,66385.0,66384.0,0.151551]
[1722390706941,0.01494996,66385.0,66384.0,0.452828]
[1722390707151,0.09006522,66386.0,66385.0,0.150636]
[1722390707374,0.09006702,66386.0,66385.0,0.150636]
[1722390707573,0.09006702,66386.0,66385.0,0.451908]
[1722390707777,0.10501997,66386.0,66385.0,0.451908]
[1722390707984,0.10501767,66386.0,66384.0,0.325188]
[1722390708193,0.01495295,66386.0,66385.0,0.451908]
[1722390708626,0.0531,66396.0,66386.0,0.150634]
[1722390708627,0.06755213,66387.0,66386.0,0.150634]
[1722390708835,0.06755213,66389.0,66388.0,0.150629]
[1722390709083,0.09006468,66390.0,66389.0,0.451881]
[1722390709084,0.06755213,66390.0,66389.0,0.451881]
[1722390709288,0.06755213,66395.0,66393.0,0.0629]
[1722390709496,0.06755213,66395.0,66394.0,0.85118]
[1722390709699,0.55606468,66397.0,66396.0,0.150611]
[1722390710533,0.55607207,66397.0,66396.0,0.150611]
[1722390710939,0.55607207,66397.0,66396.0,0.163611]
[1722390711161,0.466,66397.0,66396.0,0.177611]
[1722390712003,0.55605957,66397.0,66396.0,0.177611]
[1722390712537,0.57103057,66397.0,66396.0,0.177611]
[1722390714225,0.10503057,66397.0,66396.0,0.478833]
[1722390714352,0.014971,66397.0,66396.0,0.478833]
[1722390714585,0.09005957,66398.0,66397.0,0.150609]
[1722390715215,0.09005957,66398.0,66397.0,0.451827]
[1722390715500,0.09005957,66399.0,66398.0,0.451819]
[1722390715688,0.09005957,66399.0,66398.0,0.840132]
[1722390716661,0.09005957,66399.0,66398.0,0.851132]
[1722390717461,0.09005957,66399.0,66398.0,0.862132]
[1722390718293,0.09008098,66399.0,66398.0,0.1091]
[1722390718552,0.09008098,66399.0,66398.0,0.011]
[1722390718553,0.12759879,66399.0,66398.0,0.011]
[1722390719016,0.12759879,66399.0,66398.0,0.025]
[1722390719017,0.52497048,66399.0,66398.0,0.025]
[1722390719298,0.82617948,66399.0,66398.0,0.025]
[1722390719519,0.82617948,66399.0,66388.0,0.0744799]
[1722390719520,0.37436648,66399.0,66388.0,0.2251089]
[1722390719758,0.06756077,66390.0,66388.0,0.0744799]
[1722390720007,0.06756077,66390.0,66389.0,0.150627]
[1722390720221,0.09008085,66391.0,66389.0,0.150627]
[1722390720684,0.150612,66396.0,66389.0,0.150627]
[1722390720920,0.150612,66396.0,66388.0,0.2251079]
[1722390720921,0.09008025,66390.0,66388.0,0.2251079]
[1722390721165,0.09008025,66390.0,66389.0,0.150627]
[1722390721896,0.09008025,66390.0,66388.0,0.0854799]
[1722390722144,0.09008025,66390.0,66388.0,0.2361079]
[1722390722390,0.09008025,66390.0,66388.0,0.2251079]
[1722390723084,0.09008025,66390.0,66389.0,0.150627]
[1722390723303,0.09009223,66390.0,66389.0,0.164627]
[1722390723532,0.09009223,66390.0,66389.0,0.178627]
[1722390723788,0.09009223,66390.0,66389.0,0.150627]
[1722390724713,0.09009223,66390.0,66389.0,0.164627]
[1722390724938,0.09009223,66390.0,66389.0,0.014]
[1722390725866,0.09009223,66390.0,66389.0,0.028]
[1722390726572,0.09010715,66390.0,66389.0,0.028]
[1722390727035,0.09010715,66390.0,66389.0,0.178627]
[1722390727262,0.09010715,66390.0,66389.0,0.479881]
[1722390727263,0.10510349,66390.0,66389.0,0.479881]
[1722390727495,0.09010715,66390.0,66389.0,0.479881]
[1722390728867,0.09010715,66390.0,66389.0,0.781135]
[1722390729132,0.150602,66400.0,66393.0,0.150617]
[1722390729350,0.1,66412.0,66394.0,0.301232]
[1722390729351,0.11264209,66396.0,66394.0,0.301232]
[1722390729561,0.11264209,66396.0,66390.0,0.1434]
[1722390729562,0.11264209,66397.0,66396.0,0.150611]
[1722390729772,0.11264209,66397.0,66396.0,0.451833]
[1722390729985,0.466,66401.0,66397.0,0.150608]
[1722390730227,0.03283797,66400.0,66397.0,0.150608]
[1722390730704,0.03283797,66400.0,66398.0,0.150605]
[1722390730875,0.03283797,66400.0,66397.0,0.150608]
[1722390731047,0.1126555,66398.0,66396.0,0.013]
[1722390731248,0.11265353,66397.0,66396.0,0.013]
[1722390731466,0.11265353,66397.0,66396.0,0.150611]
[1722390732066,0.11265353,66397.0,66396.0,0.451833]
[1722390732275,0.11265353,66397.0,66396.0,0.463833]
[1722390732739,0.11265353,66397.0,66396.0,0.889255]
[1722390732951,0.09012014,66397.0,66396.0,0.889255]
[1722390733157,0.00849,66406.0,66396.0,0.889255]
[1722390733158,0.00849,66406.0,66399.0,0.150603]
[1722390733356,0.03429259,66405.0,66400.0,0.2114]
[1722390733531,0.03273839,66404.0,66400.0,0.2114]
[1722390733704,0.03273839,66404.0,66400.0,0.0608]
[1722390734135,0.16792256,66404.0,66400.0,0.0608]
[1722390734309,0.03273839,66403.0,66400.0,0.0608]
[1722390734565,0.03273839,66403.0,66400.0,0.0678]
[1722390734763,0.03273839,66403.0,66400.0,0.0608]
[1722390734964,0.13673837,66405.0,66400.0,0.0608]
[1722390734965,0.03273839,66402.0,66400.0,0.0608]
[1722390735169,0.03273839,66402.0,66400.0,0.1425]
[1722390735170,0.06758695,66401.0,66400.0,0.1425]
[1722390735532,0.09011469,66402.0,66400.0,0.1425]
[1722390735533,0.06758695,66402.0,66401.0,0.753]
[1722390735669,0.09011469,66403.0,66402.0,0.752987]
[1722390735670,0.06758695,66403.0,66402.0,0.752987]
[1722390735873,0.09011469,66404.0,66403.0,0.451786]
[1722390736071,0.09166889,66405.0,66404.0,0.451779]
[1722390736281,0.09166889,66405.0,66401.0,0.301197]
[1722390736282,0.0015542,66405.0,66401.0,0.301197]
[1722390736482,0.06757018,66402.0,66401.0,0.1506]
[1722390736699,0.09009528,66403.0,66402.0,0.150597]
[1722390736892,0.11261118,66404.0,66401.0,0.164599]
[1722390737098,0.00849,66406.0,66402.0,0.023]
[1722390737099,0.11261118,66403.0,66402.0,0.023]
[1722390737365,0.14583405,66403.0,66402.0,0.023]
[1722390737928,0.14583405,66403.0,66402.0,0.186597]
[1722390738095,0.11261118,66403.0,66402.0,0.487792]
[1722390738294,0.11261118,66403.0,66402.0,0.186597]
[1722390738295,0.14552542,66403.0,66402.0,0.186597]
[1722390739085,0.14552542,66403.0,66402.0,0.197597]
[1722390739300,0.14552542,66403.0,66402.0,0.184597]
[1722390739698,0.14571088,66403.0,66402.0,0.184597]
[1722390739959,0.14571088,66403.0,66402.0,0.185597]
[1722390740205,0.14571088,66403.0,66402.0,0.197597]
[1722390740349,0.14571088,66403.0,66402.0,0.498792]
[1722390742408,0.15815959,66403.0,66402.0,0.498792]
[1722390742992,0.01244871,66403.0,66402.0,0.498792]
[1722390743188,0.15820891,66403.0,66402.0,0.498792]
[1722390743389,0.1457602,66403.0,66402.0,0.498792]
[1722390743600,0.15820891,66403.0,66402.0,0.498792]
[1722390746235,0.15835224,66403.0,66402.0,0.498792]
[1722390746646,0.01244871,66403.0,66402.0,0.197597]
[1722390746816,0.15834902,66403.0,66402.0,0.024]
[1722390747019,0.14590031,66403.0,66402.0,0.024]
[1722390747228,0.15836298,66403.0,66402.0,0.024]
[1722390747631,0.04571708,66403.0,66402.0,0.024]
[1722390748461,0.0455391,66403.0,66402.0,0.174597]
[1722390748640,0.0455391,66403.0,66402.0,0.024]
[1722390749267,0.0463691,66403.0,66402.0,0.024]
[1722390749465,0.04645937,66403.0,66402.0,0.024]
[1722390752978,0.04625852,66403.0,66402.0,0.024]
[1722390755976,0.52388688,66403.0,66402.0,0.024]
[1722390756170,1.17920407,66403.0,66402.0,0.024]
[1722390756373,1.25970407,66403.0,66402.0,0.024]
[1722390756578,1.25970592,66403.0,66402.0,0.024]
[1722390757610,1.41180979,66403.0,66402.0,0.024]
[1722390758645,1.4116855,66403.0,66402.0,0.024]
[1722390759353,1.41131916,66403.0,66402.0,0.024]
[1722390759590,1.84480846,66403.0,66402.0,0.024]
[1722390760076,1.84480846,66403.0,66402.0,0.012]
[1722390760292,1.84480846,66403.0,66393.0,0.000913]
[1722390760293,0.451848,66394.0,66393.0,0.000913]
[1722390760516,0.79789129,66394.0,66393.0,0.000913]
[1722390761503,0.79789129,66394.0,66393.0,0.011913]
[1722390761712,0.93209129,66394.0,66393.0,0.011913]
[1722390761919,1.23332329,66394.0,66393.0,0.011913]
[1722390762091,1.37184861,66394.0,66393.0,0.011913]
[1722390762320,1.37184861,66394.0,66393.0,0.022913]
[1722390762528,1.37112379,66394.0,66393.0,0.022913]
[1722390763937,1.37112379,66394.0,66393.0,0.011913]
[1722390764236,1.37112379,66394.0,66393.0,0.015913]
[1722390764449,1.37112379,66394.0,66393.0,0.000913]
[1722390764663,1.37112379,66394.0,66393.0,0.005913]
[1722390764896,1.37112379,66394.0,66393.0,0.006913]
[1722390764897,1.52500158,66394.0,66393.0,0.006913]
[1722390765374,1.34146427,66394.0,66393.0,0.001913]
[1722390765585,1.37326911,66394.0,66393.0,0.001913]
[1722390765792,1.37326918,66394.0,66393.0,0.001913]
[1722390766033,1.52509749,66394.0,66393.0,0.001913]
[1722390766237,1.33737932,66394.0,66393.0,0.001913]
[1722390766440,1.36916333,66394.0,66393.0,0.001913]
[1722390766643,1.37116333,66394.0,66393.0,0.001913]
[1722390768264,1.23263801,66394.0,66393.0,0.001913]
[1722390769130,1.23278009,66394.0,66393.0,0.001913]
[1722390770381,1.3676368,66394.0,66393.0,0.001913]
[1722390770793,1.36763499,66394.0,66393.0,0.001913]
[1722390772404,1.36724211,66394.0,66393.0,0.001913]
[1722390773064,1.37639855,66394.0,66393.0,0.001913]
[1722390774001,1.36724211,66394.0,66393.0,0.001913]
[1722390774219,1.17928721,66394.0,66393.0,0.001913]
[1722390774999,1.17528721,66394.0,66393.0,0.000913]
[1722390775306,1.17728721,66394.0,66393.0,0.001913]
[1722390775706,1.17728721,66394.0,66393.0,0.000913]
[1722390775707,1.1775104,66394.0,66393.0,0.000913]
[1722390775829,1.2790715,66394.0,66393.0,0.000913]
[1722390776068,1.2473151,66394.0,66393.0,0.000913]
[1722390776244,1.27907148,66394.0,66393.0,0.000913]
[1722390776441,1.28007148,66394.0,66393.0,0.000913]
[1722390776888,1.27907148,66394.0,66393.0,0.000913]
[1722390777103,1.41389468,66394.0,66393.0,0.000913]
[1722390777239,1.41489468,66394.0,66393.0,0.000913]
[1722390777688,1.31533358,66394.0,66393.0,0.000913]
[1722390778069,1.53469391,66394.0,66393.0,0.000913]
[1722390778268,1.63469391,66394.0,66393.0,0.000913]
[1722390778896,1.7020255,66394.0,66393.0,0.000913]
[1722390780581,1.63489158,66394.0,66393.0,0.000913]
[1722390781412,1.63531505,66394.0,66393.0,0.000913]
[1722390781933,1.7701244,66394.0,66393.0,0.000913]
[1722390782141,1.63531505,66394.0,66393.0,0.000913]
[1722390782560,1.33469804,66394.0,66393.0,0.000913]
[1722390782977,1.23552804,66394.0,66393.0,0.000913]
[1722390783187,1.10071305,66394.0,66393.0,0.000913]
[1722390783618,1.23553475,66394.0,66393.0,0.000913]
[1722390784454,1.23583753,66394.0,66393.0,0.000913]
[1722390784916,1.10101294,66394.0,66393.0,0.000913]
[1722390785120,1.10100849,66394.0,66393.0,0.000913]
[1722390785324,1.16882295,66394.0,66393.0,0.000913]
[1722390786980,1.16916599,66394.0,66393.0,0.000913]
[1722390787611,1.16889858,66394.0,66393.0,0.000913]
[1722390788857,1.16912706,66394.0,66393.0,0.000913]
[1722390789367,1.068484,66394.0,66393.0,0.000913]
[1722390789578,1.16981756,66394.0,66393.0,0.000913]
[1722390791244,1.25631756,66394.0,66393.0,0.000913]
[1722390792029,1.84611454,66394.0,66393.0,0.000913]
[1722390792231,1.94611454,66394.0,66393.0,0.000913]
[1722390792460,2.09780644,66394.0,66393.0,0.000913]
[1722390792658,1.93611454,66394.0,66393.0,0.000913]
[1722390793302,1.94611454,66394.0,66393.0,0.000913]
[1722390793540,1.93611454,66394.0,66393.0,0.000913]
[1722390794265,1.64714956,66394.0,66393.0,0.000913]
[1722390794454,1.70795352,66394.0,66393.0,0.000913]
[1722390794708,1.81008954,66394.0,66393.0,0.000913]
[1722390794912,1.80989528,66394.0,66393.0,0.000913]
[1722390795362,1.65815686,66394.0,66393.0,0.000913]
[1722390796779,1.65839961,66394.0,66393.0,0.000913]
[1722390797121,1.57189961,66394.0,66393.0,0.000913]
[1722390797324,1.72259393,66394.0,66393.0,0.000913]
[1722390797520,1.65385377,66394.0,66393.0,0.000913]
[1722390797747,1.72253305,66394.0,66393.0,0.000913]
[1722390800628,1.73253305,66394.0,66393.0,0.000913]
[1722390801085,1.73204878,66394.0,66393.0,0.000913]
[1722390801496,2.18884878,66394.0,66393.0,0.000913]
[1722390801702,2.24194878,66394.0,66393.0,0.000913]
[1722390802990,2.56318078,66394.0,66393.0,0.000913]
[1722390803905,2.56218078,66394.0,66393.0,0.000913]
[1722390804392,2.56250753,66394.0,66393.0,0.000913]
[1722390804873,2.55806499,66394.0,66393.0,0.000913]
[1722390805103,2.55806499,66394.0,66393.0,0.001913]
[1722390805334,2.56306499,66394.0,66393.0,0.001913]
[1722390805567,2.56706499,66394.0,66393.0,0.002913]
[1722390808840,1.655283,66387.0,66386.0,0.000913]
[1722390809045,2.07300567,66387.0,66386.0,0.000913]
[1722390809251,2.08530578,66387.0,66386.0,0.000913]
[1722390809455,2.38656878,66387.0,66386.0,0.000913]
[1722390810191,2.38756878,66387.0,66386.0,0.000913]
[1722390810455,2.53546817,66387.0,66386.0,0.000913]
[1722390810631,2.4339455,66387.0,66386.0,0.000913]
[1722390810833,2.53479121,66387.0,66386.0,0.000913]
[1722390811275,2.53679121,66387.0,66386.0,0.000913]
[1722390811476,2.53579121,66387.0,66386.0,0.000913]
[1722390811700,2.53379121,66387.0,66386.0,0.000913]
[1722390812043,2.53979121,66387.0,66386.0,0.001913]
[1722390812251,2.54379121,66387.0,66386.0,0.001913]
[1722390814157,2.54366648,66387.0,66386.0,0.001913]
[1722390814574,2.4429455,66387.0,66386.0,0.001913]
[1722390814787,2.54366653,66387.0,66386.0,0.001913]
[1722390816028,2.56366653,66387.0,66386.0,0.001913]
[1722390816185,2.57262663,66387.0,66386.0,0.001913]
[1722390817063,2.4719056,66387.0,66386.0,0.001913]
[1722390817213,2.44336839,66387.0,66386.0,0.001913]
[1722390819248,2.43336839,66387.0,66386.0,0.001913]
[1722390819461,2.31296839,66387.0,66386.0,0.063313]
[1722390819674,1.588106,66387.0,66386.0,0.063313]
[1722390820698,1.58878611,66387.0,66386.0,0.063313]
[1722390822698,1.28752311,66387.0,66386.0,0.142613]
[1722390822900,1.2189879,66387.0,66386.0,0.142613]
[1722390824323,1.18568021,66387.0,66386.0,0.142613]
[1722390824525,1.21922521,66387.0,66386.0,0.142613]
[1722390825633,1.35790454,66387.0,66386.0,0.142613]
[1722390827071,1.32435954,66387.0,66386.0,0.142613]
[1722390827271,1.35796777,66387.0,66386.0,0.142613]
[1722390827969,0.91802544,66387.0,66386.0,0.142613]
[1722390828179,0.20653934,66387.0,66386.0,0.142613]
[1722390828353,0.05590834,66387.0,66386.0,0.229113]
[1722390828556,0.1683899,66387.0,66386.0,0.530381]
[1722390828763,0.1683899,66387.0,66386.0,0.379747]
[1722390828764,0.02230011,66387.0,66386.0,0.379747]
[1722390828972,0.0897928,66387.0,66386.0,0.229113]
[1722390829170,0.0897928,66387.0,66386.0,0.228113]
[1722390829171,0.10228977,66387.0,66386.0,0.228113]
[1722390829605,0.10428977,66387.0,66386.0,0.246113]
[1722390830339,0.10428295,66387.0,66386.0,0.246113]
[1722390830689,0.01430011,66387.0,66386.0,0.246113]
[1722390830892,0.01430011,66387.0,66386.0,0.396747]
[1722390831176,0.01430011,66387.0,66386.0,1.022283]
[1722390831803,0.002,66387.0,66386.0,1.022283]
[1722390832225,0.001,66387.0,66386.0,1.013283]
[1722390832424,0.00083,66393.0,66389.0,0.150625]
[1722390832657,0.00083,66393.0,66392.0,0.2287]
[1722390833281,0.00083,66393.0,66392.0,0.1422]
[1722390833734,0.00183,66393.0,66392.0,0.1422]
[1722390834786,0.00183,66393.0,66392.0,0.29282]
[1722390835600,0.00183,66393.0,66392.0,0.1422]
[1722390835814,0.00083,66393.0,66392.0,0.1422]
[1722390836044,0.00083,66393.0,66392.0,0.605061]
[1722390836251,0.00083,66393.0,66392.0,1.457643]
[1722390838182,0.00083,66393.0,66392.0,1.241543]
[1722390839937,0.466,66405.0,66392.0,1.241543]
[1722390839938,0.46349,66405.0,66399.0,0.150603]
[1722390840347,0.46349,66405.0,66400.0,0.1412]
[1722390840348,0.150599,66402.0,66400.0,0.1412]
[1722390840801,0.46202868,66401.0,66400.0,0.1412]
[1722390841318,0.15061,66397.0,66392.0,0.022]
[1722390841522,0.15061,66397.0,66392.0,0.011]
[1722390841746,0.01030821,66396.0,66393.0,0.1412]
[1722390842201,0.01030821,66396.0,66395.0,0.22596016]
[1722390842399,0.01030821,66396.0,66395.0,0.1454]
[1722390842598,0.150602,66400.0,66394.0,0.150615]
[1722390842800,0.01028606,66396.0,66395.0,0.1454]
[1722390843002,0.150604,66399.0,66398.0,0.0653]
[1722390843157,0.150602,66400.0,66398.0,0.0653]
[1722390843358,0.01029504,66399.0,66398.0,0.0653]
[1722390843983,0.01029504,66399.0,66398.0,0.1428]
[1722390845397,0.150602,66401.0,66399.0,0.061]
[1722390846341,0.150602,66400.0,66399.0,0.061]
[1722390846519,0.150602,66400.0,66399.0,0.064]
[1722390847234,0.1506,66401.0,66399.0,0.064]
[1722390847434,0.150599,66402.0,66400.0,0.0769]
[1722390847654,0.1506,66401.0,66400.0,0.1392]
[1722390848819,0.301189,66404.0,66402.0,0.0771]
[1722390849022,0.150593,66404.0,66403.0,0.0633]
[1722390850931,0.159079,66406.0,66404.0,0.0604]
[1722390851131,0.159079,66406.0,66405.0,0.1368]
[1722390852153,0.00849,66406.0,66405.0,0.1368]
[1722390852983,0.01049,66406.0,66405.0,0.1368]
[1722390853350,0.00849,66406.0,66405.0,0.1368]
[1722390853623,0.00849,66406.0,66405.0,0.1398]
[1722390853836,0.00849,66406.0,66405.0,0.1368]
[1722390854410,0.01049,66406.0,66405.0,0.1368]
[1722390854620,0.04574174,66406.0,66405.0,0.1368]
[1722390854796,0.00849,66406.0,66405.0,0.1368]
[1722390854998,0.00849,66406.0,66405.0,0.1438]
[1722390855201,0.00849,66406.0,66405.0,0.15977801]
[1722390855407,0.19442179,66406.0,66405.0,0.15977801]
[1722390856039,0.04383379,66406.0,66405.0,0.15977801]
[1722390856436,0.04383379,66406.0,66405.0,0.1508]
[1722390858593,0.04370626,66406.0,66405.0,0.1508]
[1722390860649,0.05407779,66406.0,66405.0,0.1508]
[1722390861210,0.04370626,66406.0,66405.0,0.1508]
[1722390861788,0.00849,66406.0,66405.0,0.1508]
[1722390862144,0.00849,66406.0,66405.0,0.602573]
[1722390864038,0.00849,66406.0,66405.0,0.387791]
[1722390864446,0.00849,66406.0,66405.0,0.380791]
[1722390864797,0.00849,66406.0,66405.0,0.685973]
[1722390865001,0.00849,66406.0,66405.0,1.010155]
[1722390865377,0.00849,66406.0,66405.0,1.006155]
[1722390865583,0.00949,66406.0,66405.0,1.013155]
[1722390866190,0.00949,66406.0,66405.0,0.711973]
[1722390866809,0.00949,66406.0,66405.0,0.410791]
[1722390867253,0.00949,66406.0,66405.0,0.711973]
[1722390869240,0.00949,66406.0,66405.0,0.410791]
[1722390872257,0.00949,66406.0,66405.0,0.2602]
[1722390872485,0.01810523,66406.0,66405.0,0.2602]
[1722390872799,0.01810523,66406.0,66405.0,0.2372]
[1722390873003,0.01810523,66406.0,66405.0,0.1508]
[1722390873004,0.16869323,66406.0,66405.0,0.1508]
[1722390876581,0.46987023,66406.0,66405.0,0.1508]
[1722390876903,0.77104723,66406.0,66405.0,0.1508]
[1722390877303,0.86123032,66406.0,66405.0,0.1508]
[1722390877505,0.56005332,66406.0,66405.0,0.1508]
[1722390877837,0.46987023,66406.0,66405.0,0.1508]
[1722390878259,0.47142137,66406.0,66405.0,0.1508]
[1722390878502,0.58263598,66406.0,66405.0,0.1508]
[1722390879899,0.58263598,66406.0,66405.0,0.151713]
[1722390881992,0.58265369,66406.0,66405.0,0.151713]
[1722390882231,0.61721524,66406.0,66405.0,0.151713]
[1722390884835,0.61738421,66406.0,66405.0,0.151713]
[1722390885030,0.5045971,66406.0,66405.0,0.151713]
[1722390885257,0.5045971,66406.0,66405.0,0.128083]
[1722390885258,0.61738032,66406.0,66405.0,0.128083]
[1722390885589,0.61738032,66406.0,66405.0,0.075313]
[1722390887515,0.5045971,66406.0,66405.0,0.075313]
[1722390888143,0.77104723,66406.0,66405.0,0.075313]
[1722390888352,0.80590271,66406.0,66405.0,0.157913]
[1722390888757,0.50472571,66406.0,66405.0,0.157913]
[1722390889342,0.61751021,66406.0,66405.0,0.157913]
[1722390889772,0.50472571,66406.0,66405.0,0.157639]
[1722390889978,0.61707181,66406.0,66405.0,0.244039]
[1722390891097,0.80546431,66406.0,66405.0,0.244039]
[1722390891320,0.50428731,66406.0,66405.0,0.244039]
[1722390891525,0.61730309,66406.0,66405.0,0.244039]
[1722390891944,0.61763111,66406.0,66405.0,0.244039]
[1722390892410,0.50484752,66406.0,66405.0,0.244039]
[1722390892633,0.80602452,66406.0,66405.0,0.244039]
[1722390892855,0.50484752,66406.0,66405.0,0.244039]
[1722390893934,0.50414305,66406.0,66405.0,0.157639]
[1722390894344,0.80532005,66406.0,66405.0,0.157639]
[1722390894565,0.77060883,66406.0,66405.0,0.075039]
[1722390894767,0.77060883,66406.0,66405.0,0.014913]
[1722390894768,0.80546444,66406.0,66405.0,0.014913]
[1722390896657,0.50428744,66406.0,66405.0,0.014913]
[1722390896901,0.50428744,66406.0,66405.0,0.101313]
[1722390897893,0.50468712,66406.0,66405.0,0.101313]
[1722390898701,0.20351012,66406.0,66405.0,0.101313]
[1722390898859,0.20351012,66406.0,66405.0,0.239513]
[1722390899064,0.50468712,66406.0,66405.0,0.239513]